fUSD/lending_fUSD_20240925
["ID","MTS","AMOUNT","RATE_DAILY","PERIOD"]
[339089409,1727231440637,-290.5559739,0.00012899,2]
[339089411,1727231440646,-502.79895959,0.00012899,2]
[339089414,1727231440656,-500.0,0.00012899,2]
[339089416,1727231440666,-500.0,0.00012899,2]
[339089417,1727231440676,-649.54034146,0.00012899,2]
[339089419,1727231440686,-501.98330351,0.00012899,2]
[339089422,1727231440697,-500.0,0.00012899,2]
[339089424,1727231440709,-500.0,0.00012899,2]
[339089425,1727231440719,-272.25581973,0.00012899,2]
[339089427,1727231440728,-531.52199498,0.00012899,2]
[339089429,1727231440739,-500.0,0.00012899,2]
[339089431,1727231440748,-500.0,0.00012899,2]
[339089433,1727231440759,-500.0,0.00012899,2]
[339089435,1727231440769,-494.5466436,0.00012899,2]
[339089437,1727231440779,-593.66679376,0.00012899,2]
[339089439,1727231440793,-500.0,0.00012899,2]
[339089441,1727231440803,-500.0,0.00012899,2]
[339089443,1727231440812,-500.0,0.00012899,2]
[339089445,1727231440822,-500.0,0.00012899,2]
[339089447,1727231440831,-500.0,0.00012899,2]
[339089449,1727231440841,-500.0,0.00012899,2]
[339089451,1727231440851,-503.79694846,0.00012899,2]
[339089453,1727231440860,-500.0,0.00012899,2]
[339089455,1727231440869,-500.0,0.00012899,2]
[339089457,1727231440879,-500.0,0.00012899,2]
[339089459,1727231440888,-500.0,0.00012899,2]
[339089461,1727231440898,-500.0,0.00012899,2]
[339089463,1727231440908,-516.0644616,0.00012899,2]
[339089465,1727231440917,-500.0,0.00012899,2]
[339089467,1727231440926,-500.0,0.00012899,2]
[339089469,1727231440936,-500.0,0.00012899,2]
[339089471,1727231440946,-500.0,0.00012899,2]
[339089473,1727231440956,-500.0,0.00012899,2]
[339089475,1727231440965,-500.0,0.00012899,2]
[339089477,1727231440974,-500.0,0.00012899,2]
[339089479,1727231440984,-304.7986389,0.00012899,2]
[339089481,1727231440993,-500.0,0.00012899,2]
[339089482,1727231441002,-218.88840869,0.00012899,2]
[339089485,1727231441012,-500.0,0.00012899,2]
[339089487,1727231441021,-588.33013487,0.00012899,2]
[339089488,1727231441031,-500.0,0.00012899,2]
[339089491,1727231441042,-500.0,0.00012899,2]
[339089492,1727231441051,-500.0,0.00012899,2]
[339089494,1727231441061,-500.0,0.00012899,2]
[339089496,1727231441070,-500.0,0.00012899,2]
[339089498,1727231441080,-512.8398789,0.00012899,2]
[339089500,1727231441090,-500.0,0.00012899,2]
[339089502,1727231441099,-333.89067653,0.00012899,2]
[339089504,1727231441109,-500.0,0.00012899,2]
[339089506,1727231441119,-220.11873455,0.00012899,2]
[339089509,1727231441129,-500.0,0.00012899,2]
[339089511,1727231441139,-500.0,0.00012899,2]
[339089513,1727231441149,-500.0,0.00012899,2]
[339089515,1727231441158,-167.07265123,0.00012899,2]
[339089517,1727231441168,-500.0,0.00012899,2]
[339089519,1727231441178,-500.0,0.00012899,2]
[339089521,1727231441187,-590.34960127,0.00012899,2]
[339089523,1727231441196,-414.18544884,0.00012899,2]
[339089525,1727231441206,-324.07617833,0.00012899,2]
[339089526,1727231441215,-500.0,0.00012899,2]
[339089528,1727231441225,-500.0,0.00012899,2]
[339089529,1727231441236,-352.05235357,0.00012899,2]
[339089530,1727231441246,-382.16135355,0.00012899,2]
[339089531,1727231441256,-500.0,0.00012899,2]
[339089532,1727231441265,-172.35016798,0.00012899,2]
[339089533,1727231441275,-500.0,0.00012899,2]
[339089534,1727231441286,-500.0,0.00012899,2]
[339089535,1727231441296,-383.85703788,0.00012899,2]
[339089536,1727231441305,-174.88908652,0.00012899,2]
[339089537,1727231441315,-546.13583553,0.00012899,2]
[339089538,1727231441324,-500.00000001,0.00012899,2]
[339089539,1727231441334,-528.93945139,0.00012899,2]
[339089540,1727231441344,-535.9330244,0.00012899,2]
[339089541,1727231441354,-388.18373256,0.00012899,2]
[339089542,1727231441364,-500.0,0.00012899,2]
[339089543,1727231441373,-500.0,0.00012899,2]
[339089544,1727231441383,-500.0,0.00012899,2]
[339089545,1727231441392,-500.0,0.00012899,2]
[339089546,1727231441402,-500.0,0.00012899,2]
[339089547,1727231441412,-500.0,0.00012899,2]
[339089548,1727231441422,-500.0,0.00012899,2]
[339089549,1727231441431,-500.0,0.00012899,2]
[339089550,1727231441441,-500.0,0.00012899,2]
[339089551,1727231441451,-500.0,0.00012899,2]
[339089552,1727231441460,-500.0,0.00012899,2]
[339089553,1727231441470,-500.0,0.00012899,2]
[339089554,1727231441480,-500.0,0.00012899,2]
[339089555,1727231441489,-500.0,0.00012899,2]
[339089556,1727231441500,-500.0,0.00012899,2]
[339089557,1727231441510,-500.0,0.00012899,2]
[339089558,1727231441519,-249.86882379,0.00012899,2]
[339089559,1727231441528,-606.07555904,0.00012899,2]
[339089560,1727231441540,-510.59481187,0.00012899,2]
[339089561,1727231441550,-550.16711118,0.00012899,2]
[339089562,1727231441559,-500.0,0.00012899,2]
[339089563,1727231441568,-500.0,0.00012899,2]
[339089564,1727231441578,-500.0,0.00012899,2]
[339089565,1727231441587,-500.0,0.00012899,2]
[339089566,1727231441596,-500.0,0.00012899,2]
[339089567,1727231441605,-500.0,0.00012899,2]
[339089568,1727231441615,-500.0,0.00012899,2]
[339089569,1727231441624,-500.0,0.00012899,2]
[339089570,1727231441633,-648.22501351,0.00012899,2]
[339089571,1727231441643,-503.63412046,0.00012899,2]
[339089572,1727231441652,-158.72222246,0.00012899,2]
[339089573,1727231441662,-307.35625652,0.00012899,2]
[339089574,1727231441672,-478.42572746,0.00012899,2]
[339089575,1727231441682,-500.0,0.00012899,2]
[339089576,1727231441691,-500.0,0.00012899,2]
[339089577,1727231441701,-500.0,0.00012899,2]
[339089578,1727231441714,-500.0,0.00012899,2]
[339089579,1727231441723,-500.0,0.00012899,2]
[339089580,1727231441733,-578.9206594,0.00012899,2]
[339089581,1727231441743,-500.0,0.00012899,2]
[339089582,1727231441753,-502.021254,0.00012899,2]
[339089583,1727231441763,-500.0,0.00012899,2]
[339089584,1727231441775,-501.31174587,0.00012899,2]
[339089585,1727231441789,-500.0,0.00012899,2]
[339089586,1727231441798,-500.0,0.00012899,2]
[339089587,1727231441808,-500.0,0.00012899,2]
[339089588,1727231441817,-500.0,0.00012899,2]
[339089589,1727231441827,-500.0,0.00012899,2]
[339089590,1727231441838,-500.0,0.00012899,2]
[339089591,1727231441848,-506.8740328,0.00012899,2]
[339089592,1727231441857,-500.0,0.00012899,2]
[339089593,1727231441868,-500.0,0.00012899,2]
[339089594,1727231441878,-500.0,0.00012899,2]
[339089595,1727231441888,-267.92283998,0.00012899,2]
[339089596,1727231441897,-500.0,0.00012899,2]
[339089597,1727231441908,-188.43365663,0.00012899,2]
[339089598,1727231441918,-500.0,0.00012899,2]
[339089599,1727231441927,-500.0,0.00012899,2]
[339089600,1727231441937,-500.0,0.00012899,2]
[339089601,1727231441947,-500.0,0.00012899,2]
[339089602,1727231441956,-432.69,0.00012899,2]
[339089603,1727231441966,-500.0,0.00012899,2]
[339089604,1727231441975,-500.0,0.00012899,2]
[339089605,1727231441985,-500.0,0.00012899,2]
[339089606,1727231441995,-500.0,0.00012899,2]
[339089607,1727231442005,-500.0,0.00012899,2]
[339089608,1727231442015,-500.0,0.00012899,2]
[339089609,1727231442025,-500.0,0.00012899,2]
[339089610,1727231442035,-500.0,0.00012899,2]
[339089611,1727231442045,-500.0,0.00012899,2]
[339089612,1727231442054,-500.0,0.00012899,2]
[339089613,1727231442064,-500.0,0.00012899,2]
[339089614,1727231442074,-500.0,0.00012899,2]
[339089615,1727231442083,-500.0,0.00012899,2]
[339089616,1727231442093,-500.0,0.00012899,2]
[339089617,1727231442103,-500.0,0.00012899,2]
[339089618,1727231442113,-440.21135432,0.00012899,2]
[339089619,1727231442123,-500.0,0.00012899,2]
[339089620,1727231442132,-548.02058848,0.00012899,2]
[339089621,1727231442142,-500.0,0.00012899,2]
[339089622,1727231442151,-500.0,0.00012899,2]
[339089623,1727231442160,-282.45,0.00012899,2]
[339089624,1727231442170,-500.0,0.00012899,2]
[339089625,1727231442179,-577.41442942,0.00012899,2]
[339089626,1727231442188,-500.0,0.00012899,2]
[339089627,1727231442197,-500.0,0.00012899,2]
[339089628,1727231442206,-500.0,0.00012899,2]
[339089629,1727231442215,-481.24422495,0.00012899,2]
[339089630,1727231442225,-258.3,0.00012899,2]
[339089631,1727231442234,-509.71225057,0.00012899,2]
[339089632,1727231442243,-532.43548852,0.00012899,2]
[339089633,1727231442252,-500.0,0.00012899,2]
[339089634,1727231442263,-500.0,0.00012899,2]
[339089635,1727231442275,-352.18004473,0.00012899,2]
[339089636,1727231442290,-583.85936229,0.00012899,2]
[339089637,1727231442302,-500.0,0.00012899,2]
[339089638,1727231442313,-427.41741662,0.00012899,2]
[339089639,1727231442325,-500.0,0.00012899,2]
[339089640,1727231442335,-500.0,0.00012899,2]
[339089641,1727231442345,-500.0,0.00012899,2]
[339089642,1727231442356,-500.0,0.00012899,2]
[339089643,1727231442367,-500.0,0.00012899,2]
[339089644,1727231442378,-434.45314069,0.00012899,2]
[339089645,1727231442389,-500.0,0.00012899,2]
[339089646,1727231442401,-575.26818195,0.00012899,2]
[339089647,1727231442412,-500.0,0.00012899,2]
[339089648,1727231442424,-500.0,0.00012899,2]
[339089649,1727231442436,-576.78454854,0.00012899,2]
[339089650,1727231442447,-303.98660368,0.00012899,2]
[339089651,1727231442459,-500.0,0.00012899,2]
[339089652,1727231442471,-500.0,0.00012899,2]
[339089653,1727231442483,-247.46,0.00012899,2]
[339089654,1727231442494,-450.54,0.00012899,2]
[339089655,1727231442506,-584.71992618,0.00012899,2]
[339089656,1727231442516,-254.20932558,0.000129,2]
[339089657,1727231442527,-26312.70398128,0.000129,2]
[339089658,1727231442540,-59346.15115781,0.000129,2]
[339089659,1727231442781,-3725.18505877,0.000129,2]
[339089660,1727231442795,-33741.26908758,0.000129,2]
[339089661,1727231442870,-2342.33206655,0.000129,2]
[339089662,1727231442902,-967.8279744,0.000129,2]
[339089663,1727231442915,-3226.05,0.000129,2]
[339089664,1727231442927,-2830.02928545,0.000129,2]
[339089665,1727231442940,-5067.44166413,0.000129,2]
[339089666,1727231442952,-257.884,0.000129,2]
[339089667,1727231442964,-1251.51040372,0.000129,2]
[339089668,1727231442976,-1027.18596745,0.000129,2]
[339089670,1727231442988,-6388.29670046,0.000129,2]
[339089671,1727231443000,-331.37356652,0.000129,2]
[339089672,1727231443266,-1782.18722105,0.000129,2]
[339089673,1727231443279,-16134.27152331,0.000129,2]
[339089674,1727231443295,-445.03084536,0.000129,2]
[339089675,1727231443349,-293.80853246,0.000129,2]
[339089676,1727231443365,-1728.53770147,0.000129,2]
[339089677,1727231443377,-378.703701,0.000129,2]
[339089678,1727231443390,-4143.31,0.000129,2]
[339089679,1727231443402,-2722.72632865,0.000129,2]
[339089680,1727231443434,-1383.95848256,0.000129,2]
[339089681,1727231443447,-656.86101804,0.000129,2]
[339089682,1727231443459,-443.4506406,0.000129,2]
[339089691,1727231446132,-438552.4553137,0.000129,2]
[339089693,1727231446143,-88334.78272668,0.000129,2]
[339089695,1727231446157,-5120.18609068,0.000129,2]
[339089706,1727231446242,-12904.79999998,0.000129,2]
[339089708,1727231446256,-2659.11323787,0.000129,2]
[339089728,1727231447507,-15198.06703155,0.000129,2]
[339089729,1727231447520,-35510.06290173,0.000129,2]
[339089730,1727231447537,-4411.4206032,0.000129,2]
[339089731,1727231496517,1050.0,0.00011,2]
[339089732,1727231738861,336.2,9.904e-05,2]
[339089733,1727231780297,1000.0,0.00022,120]
[339089734,1727231945691,162.69,0.00010959,2]
[339089735,1727232191016,2060.0,0.00022,120]
[339089736,1727232351370,335.14,9.751e-05,2]
[339089737,1727232468327,510.0,0.00021917,120]
[339089738,1727232517315,155.49,0.00010959,2]
[339089759,1727232632355,-250.0,0.0001158,2]
[339089761,1727232632365,-250.0,0.00011584,2]
[339089763,1727232632375,-939.059637,0.00011597,2]
[339089765,1727232632384,-402.09089524,0.00011597,2]
[339089767,1727232632393,-285.87,0.00011604,2]
[339089769,1727232632402,-8.87156818,0.00011607,2]
[339089771,1727232632414,-241.12843182,0.00011607,2]
[339089772,1727232632423,-557.2276982,0.00011656,2]
[339089774,1727232632505,-198.4323018,0.00011656,2]
[339089775,1727232632515,-197.85,0.00011666,2]
[339089776,1727232632524,-150.0,0.00011685,2]
[339089777,1727232632533,-176.9,0.00011712,2]
[339089778,1727232632542,-1000.0,0.0001175,2]
[339089779,1727232632551,-300.0,0.00011752,2]
[339089780,1727232632560,-499.99,0.00011753,2]
[339089781,1727232632569,-1321.8,0.00011753,2]
[339089782,1727232632579,-150.0,0.00011753,2]
[339089783,1727232632588,-812.1,0.000118,2]
[339089784,1727232632597,-224.77,0.00011846,2]
[339089785,1727232632607,-150.99,0.00011846,2]
[339089786,1727232632620,-335.14,0.00012015,2]
[339089787,1727232632629,-285.390696,0.00012197,2]
[339089788,1727232632639,-3275.304498,0.00012197,2]
[339089789,1727232632648,-8569.52,0.00012197,2]
[339089790,1727232632657,-3275.304498,0.0001235,2]
[339089791,1727232632666,-150.0,0.00012501,2]
[339089792,1727232632675,-3275.304498,0.00012502,2]
[339089793,1727232632684,-150.0,0.00012651,2]
[339089794,1727232632694,-3275.304498,0.00012655,2]
[339089795,1727232632703,-150.0,0.00012658,2]
[339089796,1727232632712,-1500.0,0.0001267,2]
[339089797,1727232632722,-150.0,0.0001267,2]
[339089798,1727232632731,-245.47,0.0001267,2]
[339089799,1727232632742,-11785.4588,0.0001268,2]
[339089800,1727232632753,-2069.082,0.0001268,2]
[339089801,1727232632763,-216.46903804,0.00012695,2]
[339089802,1727232632772,-5794.5679,0.00012695,2]
[339089803,1727232632781,-155.1508769,0.00012703,2]
[339089804,1727232632791,-216.46903801,0.00012707,2]
[339089805,1727232632801,-151.24219354,0.00012707,2]
[339089806,1727232632812,-1500.0,0.00012711,2]
[339089807,1727232632822,-216.46903801,0.00012718,2]
[339089808,1727232632831,-150.0,0.00012726,2]
[339089809,1727232632840,-216.46903801,0.0001273,2]
[339089810,1727232632851,-216.46903801,0.00012742,2]
[339089812,1727232632861,-216.46903801,0.00012753,2]
[339089813,1727232632870,-216.46903801,0.00012765,2]
[339089814,1727232632880,-216.46903801,0.00012777,2]
[339089815,1727232632889,-245.47,0.00012785,2]
[339089816,1727232632898,-245.47,0.00012785,2]
[339089817,1727232632907,-150.0,0.00012787,2]
[339089818,1727232632916,-216.46903801,0.00012788,2]
[339089819,1727232632927,-7640.3720865,0.00012794,2]
[339089820,1727232632936,-55402.53398431,0.00012795,2]
[339089821,1727232632949,-3336.88164217,0.00012795,2]
[339089822,1727232632960,-255.5570155,0.00012795,2]
[339089823,1727232632972,-899.999998,0.00012795,2]
[339089824,1727232632983,-5950.0,0.00012795,2]
[339089825,1727232632995,-2399.99999998,0.00012795,2]
[339089826,1727232633006,-5693.984656,0.00012795,2]
[339089827,1727232633017,-13479.90020404,0.00012795,2]
[339089828,1727232633027,-355.5677,0.00012795,2]
[339089829,1727232633036,-8373.296,0.00012795,2]
[339089830,1727232633046,-500.0,0.00012796,2]
[339089831,1727232633055,-500.0,0.00012797,2]
[339089832,1727232633064,-500.0,0.00012797,2]
[339089833,1727232633073,-200.0,0.00012797,2]
[339089834,1727232633085,-341.4604,0.00012799,2]
[339089835,1727232633095,-10005.2139,0.00012799,2]
[339089836,1727232633105,-1126.00265981,0.00012799,2]
[339089837,1727232633115,-1126.00265977,0.00012799,2]
[339089838,1727232633127,-1126.00265977,0.00012799,2]
[339089839,1727232633136,-1126.00265977,0.00012799,2]
[339089840,1727232633145,-1126.00265977,0.000128,2]
[339089841,1727232633154,-1126.00265977,0.000128,2]
[339089842,1727232633164,-1126.00265977,0.000128,2]
[339089843,1727232633173,-314.73694087,0.000128,2]
[339089844,1727232633183,-45382.8903,0.000128,2]
[339089845,1727232633192,-333.28490787,0.000128,2]
[339089846,1727232633201,-167.78396599,0.000128,2]
[339089847,1727232633211,-367.76170878,0.000128,2]
[339089848,1727232633220,-216.46903801,0.000128,2]
[339089849,1727232633230,-1126.00265977,0.000128,2]
[339089850,1727232633243,-172.50975295,0.000128,2]
[339089851,1727232633254,-172.50975295,0.000128,2]
[339089852,1727232633264,-172.50975295,0.000128,2]
[339089853,1727232633273,-172.50975295,0.000128,2]
[339089854,1727232633282,-173.0,0.000128,2]
[339089855,1727232633292,-289.80206836,0.000128,2]
[339089856,1727232633302,-289.80206836,0.000128,2]
[339089857,1727232633312,-289.80206836,0.000128,2]
[339089858,1727232633321,-289.80206836,0.000128,2]
[339089859,1727232633331,-289.80206836,0.000128,2]
[339089860,1727232633341,-289.80206836,0.000128,2]
[339089861,1727232633351,-289.80206836,0.000128,2]
[339089862,1727232633362,-289.80206836,0.000128,2]
[339089863,1727232633372,-289.80206836,0.000128,2]
[339089864,1727232633382,-289.80206836,0.000128,2]
[339089865,1727232633391,-289.80206836,0.000128,2]
[339089866,1727232633401,-289.80206836,0.000128,2]
[339089867,1727232633411,-289.80206836,0.000128,2]
[339089868,1727232633420,-289.80206836,0.000128,2]
[339089869,1727232633430,-289.80206836,0.000128,2]
[339089870,1727232633439,-289.80206836,0.000128,2]
[339089871,1727232633449,-289.80206836,0.000128,2]
[339089872,1727232633458,-289.80206836,0.000128,2]
[339089873,1727232633467,-289.80206836,0.000128,2]
[339089874,1727232633477,-290.3,0.000128,2]
[339089875,1727232633486,-306.06396894,0.000128,2]
[339089876,1727232633495,-306.06396894,0.000128,2]
[339089877,1727232633505,-999.17789944,0.000128,2]
[339089878,1727232633515,-306.06396894,0.000128,2]
[339089879,1727232633524,-306.06396894,0.000128,2]
[339089880,1727232633534,-306.06396894,0.000128,2]
[339089881,1727232633544,-306.06396894,0.000128,2]
[339089882,1727232633554,-306.06396894,0.000128,2]
[339089883,1727232633563,-306.06396894,0.000128,2]
[339089884,1727232633573,-306.06396894,0.000128,2]
[339089885,1727232633583,-306.06396894,0.000128,2]
[339089886,1727232633592,-306.06396894,0.000128,2]
[339089887,1727232633602,-306.06396894,0.000128,2]
[339089888,1727232633612,-306.06396894,0.000128,2]
[339089889,1727232633622,-306.06396894,0.000128,2]
[339089890,1727232633631,-306.06396894,0.000128,2]
[339089891,1727232633641,-306.06396894,0.000128,2]
[339089892,1727232633650,-306.06396894,0.000128,2]
[339089893,1727232633660,-306.06396894,0.000128,2]
[339089894,1727232633669,-306.06396894,0.000128,2]
[339089895,1727232633678,-306.56,0.000128,2]
[339089896,1727232633687,-3275.304498,0.00012807,2]
[339089897,1727232633697,-150.0,0.00012828,2]
[339089898,1727232633706,-150.0,0.00012853,2]
[339089899,1727232633716,-407.795,0.00012857,2]
[339089900,1727232633726,-172.324,0.00012857,2]
[339089901,1727232633736,-500.0,0.0001287,2]
[339089902,1727232633746,-556.57631086,0.0001287,2]
[339089903,1727232633756,-150.0,0.00012872,2]
[339089904,1727232633766,-296.49819793,0.00012873,2]
[339089905,1727232633776,-500.0,0.00012873,2]
[339089906,1727232633785,-500.0,0.00012873,2]
[339089907,1727232633795,-200.36047922,0.00012873,2]
[339089908,1727232633805,-500.0,0.00012876,2]
[339089909,1727232633814,-504.04365585,0.00012876,2]
[339089910,1727232633824,-506.41874815,0.00012876,2]
[339089911,1727232633834,-500.0,0.00012876,2]
[339089912,1727232633843,-500.64227979,0.00012876,2]
[339089913,1727232633853,-500.0,0.00012876,2]
[339089914,1727232633863,-500.0,0.00012876,2]
[339089915,1727232633873,-500.0,0.00012876,2]
[339089916,1727232633883,-500.0,0.00012876,2]
[339089917,1727232633892,-500.0,0.00012876,2]
[339089918,1727232633902,-500.0,0.00012876,2]
[339089919,1727232633912,-500.0,0.00012876,2]
[339089920,1727232633922,-500.0,0.00012876,2]
[339089921,1727232633931,-500.0,0.00012876,2]
[339089922,1727232633941,-516.80324018,0.00012876,2]
[339089923,1727232633950,-503.39159182,0.00012876,2]
[339089924,1727232633960,-500.0,0.00012876,2]
[339089925,1727232633970,-502.15669588,0.00012876,2]
[339089926,1727232633979,-500.0,0.00012876,2]
[339089927,1727232633989,-150.0,0.00012889,2]
[339089928,1727232633999,-153.83,0.0001289,2]
[339089929,1727232634009,-1004.0,0.0001289,2]
[339089930,1727232634019,-153.83,0.0001289,2]
[339089931,1727232634029,-153.83,0.0001289,2]
[339089932,1727232634039,-153.83,0.0001289,2]
[339089933,1727232634048,-153.83,0.0001289,2]
[339089934,1727232634058,-153.83,0.0001289,2]
[339089935,1727232634068,-153.83,0.0001289,2]
[339089936,1727232634079,-1941.5725814,0.00012898,2]
[339089937,1727232634092,-5063.6247219,0.00012898,2]
[339089938,1727232634102,-29699.3588555,0.00012898,2]
[339089939,1727232634111,-519.99446688,0.00012898,2]
[339089940,1727232634122,-500.0,0.00012898,2]
[339089941,1727232634132,-501.54935333,0.00012898,2]
[339089942,1727232634141,-500.0,0.00012898,2]
[339089943,1727232634151,-500.0,0.00012898,2]
[339089944,1727232634162,-500.0,0.00012898,2]
[339089945,1727232634172,-500.0,0.00012898,2]
[339089946,1727232634182,-500.0,0.00012898,2]
[339089947,1727232634191,-610.93214987,0.00012898,2]
[339089948,1727232634201,-500.0,0.00012898,2]
[339089949,1727232634211,-502.26238063,0.00012898,2]
[339089950,1727232634221,-501.47803681,0.00012898,2]
[339089951,1727232634231,-500.0,0.00012898,2]
[339089952,1727232634241,-2381.89658873,0.00012899,2]
[339089953,1727232634251,-500.0,0.00012899,2]
[339089954,1727232634261,-503.51186159,0.00012899,2]
[339089955,1727232634271,-523.54854273,0.00012899,2]
[339089956,1727232634281,-500.0,0.00012899,2]
[339089957,1727232634290,-500.0,0.00012899,2]
[339089958,1727232634300,-211.56806251,0.00012899,2]
[339089959,1727232634310,-2000.0,0.00012899,2]
[339089960,1727232634320,-535.826,0.00012899,2]
[339089961,1727232634329,-431.958,0.00012899,2]
[339089962,1727232634338,-174.581,0.00012899,2]
[339089963,1727232634348,-619.651,0.00012899,2]
[339089964,1727232634358,-927.346,0.00012899,2]
[339089965,1727232634368,-809.0,0.00012899,2]
[339089966,1727232634377,-500.0,0.00012899,2]
[339089967,1727232634387,-294.68753106,0.00012899,2]
[339089968,1727232634396,-554.447,0.00012899,2]
[339089969,1727232634405,-1903.0,0.00012899,2]
[339089970,1727232634416,-500.0,0.00012899,2]
[339089971,1727232634425,-517.44936374,0.00012899,2]
[339089972,1727232634435,-553.0,0.00012899,2]
[339089973,1727232634445,-504.31025271,0.00012899,2]
[339089974,1727232634454,-248.0,0.00012899,2]
[339089975,1727232634463,-1913.0,0.00012899,2]
[339089976,1727232634473,-806.0,0.00012899,2]
[339089977,1727232634483,-500.0,0.00012899,2]
[339089978,1727232634492,-500.0,0.00012899,2]
[339089979,1727232634502,-500.0,0.00012899,2]
[339089980,1727232634512,-176.11060116,0.00012899,2]
[339089981,1727232634522,-3347.0,0.00012899,2]
[339089982,1727232634532,-500.0,0.00012899,2]
[339089983,1727232634541,-500.0,0.00012899,2]
[339089984,1727232634552,-500.0,0.00012899,2]
[339089985,1727232634562,-500.0,0.00012899,2]
[339089986,1727232634572,-500.0,0.00012899,2]
[339089987,1727232634582,-500.0,0.00012899,2]
[339089988,1727232634591,-500.0,0.00012899,2]
[339089989,1727232634601,-500.0,0.00012899,2]
[339089990,1727232634610,-626.53221079,0.00012899,2]
[339089991,1727232634620,-500.0,0.00012899,2]
[339089992,1727232634631,-500.0,0.00012899,2]
[339089993,1727232634641,-500.0,0.00012899,2]
[339089994,1727232634651,-500.0,0.00012899,2]
[339089995,1727232634661,-500.0,0.00012899,2]
[339089996,1727232634670,-301.18709131,0.00012899,2]
[339089997,1727232634680,-420.1306161,0.00012899,2]
[339089998,1727232634689,-500.0,0.00012899,2]
[339089999,1727232634699,-500.0,0.00012899,2]
[339090000,1727232634709,-500.0,0.00012899,2]
[339090001,1727232634719,-500.0,0.00012899,2]
[339090002,1727232634729,-500.0,0.00012899,2]
[339090003,1727232634738,-221.05480837,0.00012899,2]
[339090004,1727232634748,-282.20199154,0.00012899,2]
[339090005,1727232634758,-500.0,0.00012899,2]
[339090006,1727232634767,-500.0,0.00012899,2]
[339090007,1727232634777,-500.0,0.00012899,2]
[339090008,1727232634786,-500.0,0.00012899,2]
[339090009,1727232634795,-500.0,0.00012899,2]
[339090010,1727232634805,-500.0,0.00012899,2]
[339090011,1727232634814,-500.0,0.00012899,2]
[339090012,1727232634824,-500.0,0.00012899,2]
[339090013,1727232634833,-500.0,0.00012899,2]
[339090014,1727232634842,-500.0,0.00012899,2]
[339090015,1727232634852,-213.03159214,0.00012899,2]
[339090016,1727232634862,-352.03475967,0.00012899,2]
[339090017,1727232634871,-1147.0,0.00012899,2]
[339090018,1727232634881,-5868.0,0.00012899,2]
[339090019,1727232634890,-13490.0,0.00012899,2]
[339090020,1727232634900,-150.0,0.00012899,2]
[339090021,1727232634909,-1080.0,0.00012899,2]
[339090022,1727232634919,-71595.55541415,0.000129,2]
[339090023,1727232634933,-4223.30804722,0.000129,2]
[339090024,1727232634944,-609.86344662,0.000129,2]
[339090025,1727232638757,-318.97284955,0.000128,2]
[339090026,1727232638767,-150.0,0.00012899,2]
[339090027,1727232638776,-2381.89658873,0.00012899,2]
[339090028,1727232638785,-278592.77773893,0.000129,2]
[339090029,1727232638794,-1140135.43067391,0.000129,2]
[339090030,1727232638806,-626.16993068,0.000129,2]
[339090031,1727232638817,-255.3477856,0.000129,2]
[339090032,1727232638828,-255.0,0.000129,2]
[339090033,1727232638904,-3936.04611518,0.000129,2]
[339090034,1727232639065,-2735.53908701,0.000129,2]
[339090035,1727232639076,-605.5446212,0.000129,2]
[339090036,1727232639091,-653.67901261,0.000129,2]